bitfinex-derivatives/quotes_BTCF0:USTF0_20260106
["timestamp","ask_amount","ask_price","bid_price","bid_amount"]
[1767679138072,0.010684,93613.0,93601.0,0.0908]
[1767679139378,0.010684,93614.0,93602.0,0.01831569]
[1767679141776,0.010684,93617.0,93602.0,0.01831569]
[1767679142583,0.11727615,93622.0,93602.0,0.01831569]
[1767679143380,0.01924699,93621.0,93602.0,0.01831569]
[1767679143580,0.01924699,93621.0,93601.0,0.18122267]
[1767679143581,0.010684,93613.0,93599.0,0.07786531]
[1767679143778,0.010684,93613.0,93600.0,0.0908]
[1767679144180,0.010685,93611.0,93599.0,0.07786531]
[1767679144384,0.010684,93614.0,93600.0,0.0908]
[1767679144777,0.010684,93614.0,93601.0,0.01758428]
[1767679144966,0.010684,93614.0,93601.0,0.10838428]
[1767679146780,0.010684,93617.0,93601.0,0.10838428]
[1767679147080,0.010684,93615.0,93601.0,0.10838428]
[1767679147481,0.0908,93627.0,93601.0,0.10838428]
[1767679147482,0.09084,93634.0,93615.0,0.0126317]
[1767679147679,0.01924699,93633.0,93614.0,0.09360664]
[1767679147985,0.01924699,93633.0,93611.0,0.0126317]
[1767679147986,0.01924699,93631.0,93611.0,0.0126317]
[1767679148284,0.01924699,93630.0,93611.0,0.0126317]
[1767679148481,0.010684,93621.0,93611.0,0.0126317]
[1767679148883,0.010684,93619.0,93608.0,0.10640803]
[1767679150184,0.010683,93622.0,93608.0,0.10640803]
[1767679150986,0.010683,93622.0,93611.0,0.01266462]
[1767679154484,0.010683,93622.0,93610.0,0.09360664]
[1767679156183,0.09787925,93636.0,93617.0,0.00108616]
[1767679156385,0.010683,93627.0,93620.0,0.00108616]
[1767679156588,0.010683,93629.0,93620.0,0.00108616]
[1767679156981,0.010683,93629.0,93619.0,0.09360664]
[1767679158193,0.010683,93630.0,93619.0,0.09360664]
[1767679161794,0.010683,93628.0,93619.0,0.09360664]
[1767679163687,0.010682,93633.0,93619.0,0.09360664]
[1767679164590,0.1996,93648.0,93627.0,0.09360664]
[1767679164781,0.010681,93642.0,93627.0,0.09360664]
[1767679165294,0.010681,93642.0,93628.0,0.00029356]
[1767679165591,0.010681,93642.0,93630.0,0.00029356]
[1767679168396,0.010681,93645.0,93630.0,0.01097556]
[1767679170090,0.010681,93645.0,93629.0,0.09360664]
[1767679171692,0.010681,93645.0,93629.0,0.10428964]
[1767679172893,0.010681,93643.0,93629.0,0.10428964]
[1767679173203,0.01623144,93657.0,93632.0,0.09594018]
[1767679173390,0.01068,93651.0,93635.0,0.010682]
[1767679173593,0.01068,93651.0,93636.0,0.0908]
[1767679177290,0.01068,93651.0,93636.0,0.101482]
[1767679181097,0.11483976,93650.0,93636.0,0.0908]
[1767679181304,0.010681,93647.0,93636.0,0.0908]
[1767679181505,0.11483976,93650.0,93636.0,0.0908]
[1767679182303,0.010681,93648.0,93636.0,0.0908]
[1767679183797,0.10928832,93650.0,93636.0,0.0908]
[1767679184304,0.01068,93650.0,93636.0,0.0908]
[1767679184503,0.10928832,93650.0,93636.0,0.0908]
[1767679185606,0.10928832,93650.0,93634.0,0.010682]
[1767679185804,0.10928832,93650.0,93635.0,0.0908]
[1767679187208,0.01068,93650.0,93635.0,0.0908]
[1767679187600,0.10928832,93650.0,93635.0,0.0908]
[1767679193906,0.01068,93650.0,93635.0,0.0908]
[1767679194113,0.10928832,93650.0,93635.0,0.0908]
[1767679194507,0.01623144,93648.0,93631.0,0.010682]
[1767679194713,0.010681,93644.0,93632.0,0.0908]
[1767679195010,0.010682,93639.0,93632.0,0.0908]
[1767679196316,0.010682,93637.0,93630.0,0.0908]
[1767679197314,0.010681,93640.0,93630.0,0.0908]
[1767679197514,0.010681,93640.0,93623.0,0.010683]
[1767679197716,0.010681,93640.0,93624.0,0.0908]
[1767679197912,0.010682,93638.0,93624.0,0.0908]
[1767679200302,0.010681,93641.0,93625.0,0.010683]
[1767679200506,0.010682,93639.0,93624.0,0.18583796]
[1767679201215,0.010682,93639.0,93624.0,0.19652096]
[1767679201718,0.010682,93639.0,93624.0,0.18583796]
[1767679202216,0.010682,93637.0,93624.0,0.18583796]
[1767679202514,0.09860832,93634.0,93618.0,0.09704884]
[1767679202719,0.010683,93629.0,93619.0,0.0908]
[1767679202908,0.010683,93629.0,93613.0,0.09704884]
[1767679202909,0.010683,93629.0,93620.0,0.0908]
[1767679203414,0.010683,93629.0,93611.0,0.92428]
[1767679203415,0.0149756,93629.0,93605.0,0.09704884]
[1767679203613,0.09860832,93620.0,93606.0,1.01508]
[1767679203820,0.010683,93628.0,93613.0,0.09704884]
[1767679204815,0.010683,93626.0,93613.0,0.09704884]
[1767679205414,0.09860832,93630.0,93613.0,0.09704884]
[1767679205715,0.09860832,93630.0,93604.0,0.92428]
[1767679205716,0.010685,93613.0,93604.0,0.92428]
[1767679205907,0.010685,93611.0,93605.0,0.0908]
[1767679206721,0.010685,93611.0,93606.0,0.0908]
[1767679206912,0.010684,93614.0,93606.0,0.0908]
[1767679207224,0.010685,93608.0,93593.0,0.09704884]
[1767679207412,0.0149756,93615.0,93593.0,0.10773584]
[1767679207619,0.09860832,93610.0,93594.0,0.0908]
[1767679207818,0.010685,93611.0,93595.0,0.09704884]
[1767679208428,0.010685,93609.0,93595.0,0.09704884]
[1767679208721,0.0149756,93606.0,93588.0,0.10773584]
[1767679208925,0.0149756,93606.0,93589.0,0.0908]
[1767679209323,0.11358392,93610.0,93589.0,0.0908]
[1767679209526,0.0149756,93609.0,93589.0,0.0908]
[1767679209724,0.0149756,93609.0,93590.0,0.0908]
[1767679210228,0.010685,93606.0,93591.0,0.09704884]
[1767679210619,0.010686,93604.0,93591.0,0.09704884]
[1767679212020,0.010685,93607.0,93591.0,0.09704884]
[1767679216629,0.010685,93610.0,93591.0,0.09704884]
[1767679216829,0.09860832,93620.0,93594.0,0.09704884]
[1767679217326,0.0149756,93619.0,93594.0,0.09704884]
[1767679218233,0.10929332,93610.0,93594.0,0.09704884]
[1767679220433,0.010685,93608.0,93594.0,0.09704884]
[1767679221833,0.11171807,93600.0,93587.0,0.01892279]
[1767679222134,0.09860832,93600.0,93569.0,0.09918631]
[1767679222331,0.0149756,93607.0,93591.0,0.09704884]
[1767679222332,0.010686,93604.0,93591.0,0.09704884]
[1767679222523,0.0149756,93607.0,93591.0,0.09704884]
[1767679222923,0.010685,93606.0,93591.0,0.09704884]
[1767679228146,0.09084,93611.0,93597.0,0.09704884]
[1767679229442,0.010685,93612.0,93597.0,0.09704884]
[1767679231245,0.01607111,93627.0,93601.0,0.09677326]
[1767679231451,0.010684,93620.0,93610.0,0.19538158]
[1767679231745,0.010683,93628.0,93611.0,0.09677326]
[1767679231949,0.010682,93631.0,93619.0,0.09677326]
[1767679232738,0.010683,93628.0,93619.0,0.09677326]
[1767679233450,0.010683,93626.0,93610.0,0.09860832]
[1767679233662,0.010683,93626.0,93611.0,0.09677326]
[1767679234150,0.09084,93637.0,93614.0,0.09677326]
[1767679234548,0.10691111,93637.0,93614.0,0.09677326]
[1767679235253,0.010682,93631.0,93614.0,0.09677326]
[1767679236044,0.010683,93629.0,93614.0,0.09677326]
[1767679236245,0.010683,93627.0,93614.0,0.09677326]
[1767679236651,0.010683,93627.0,93607.0,0.101525]
[1767679236652,0.010683,93625.0,93607.0,0.101525]
[1767679236852,0.010683,93625.0,93610.0,0.09860832]
[1767679237053,0.010683,93629.0,93611.0,0.09677326]
[1767679237258,0.010683,93629.0,93611.0,0.10745826]
[1767679238759,0.010682,93632.0,93614.0,0.09677326]
[1767679238965,0.09084,93637.0,93618.0,0.09677326]
[1767679239359,0.01607111,93641.0,93618.0,0.09677326]
[1767679239564,0.09119453,93645.0,93607.0,0.09084]
[1767679239565,0.010682,93638.0,93620.0,0.09677326]
[1767679239761,0.010682,93636.0,93620.0,0.09677326]
[1767679240469,0.010682,93639.0,93620.0,0.09677326]
[1767679242268,0.09119453,93645.0,93629.0,0.09677326]
[1767679242269,0.010681,93645.0,93629.0,0.09677326]
[1767679242570,0.01068,93648.0,93631.0,0.09677326]
[1767679242771,0.01068,93651.0,93633.0,0.09677326]
[1767679243662,0.010681,93648.0,93633.0,0.09677326]
[1767679245565,0.09084,93652.0,93633.0,0.09677326]
[1767679245866,0.01068,93651.0,93633.0,0.09677326]
[1767679247659,0.01068,93649.0,93633.0,0.09677326]
[1767679248072,0.09084,93652.0,93633.0,0.09677326]
[1767679248571,0.01068,93649.0,93633.0,0.09677326]
[1767679249170,0.010681,93647.0,93633.0,0.09677326]
[1767679249371,0.09084,93652.0,93633.0,0.09677326]
[1767679250171,0.01068,93649.0,93633.0,0.09677326]
[1767679252072,0.01068,93649.0,93635.0,0.09677326]
[1767679252962,0.10152,93652.0,93635.0,0.09677326]
[1767679253165,0.00213542,93659.0,93645.0,0.09677326]
[1767679253370,0.101479,93665.0,93645.0,0.10745426]
[1767679253666,0.30686564,93673.0,93645.0,0.10745426]
[1767679253667,0.010679,93663.0,93645.0,0.10745426]
[1767679254074,0.101478,93666.0,93648.0,0.09677326]
[1767679254275,0.010678,93666.0,93648.0,0.09677326]
[1767679255664,0.0908,93667.0,93650.0,0.09844559]
[1767679255969,0.0908,93667.0,93652.0,0.09844559]
[1767679256273,0.010678,93669.0,93652.0,0.09844559]
[1767679256476,0.0908,93672.0,93654.0,0.09844559]
[1767679256477,0.101478,93672.0,93654.0,0.09844559]
[1767679256974,0.0908,93676.0,93654.0,0.09844559]
[1767679257175,0.0908,93677.0,93656.0,0.09844559]
[1767679257368,0.010678,93672.0,93656.0,0.09844559]
[1767679260673,0.010678,93672.0,93656.0,0.10912459]
[1767679261274,0.01365927,93686.0,93661.0,0.09111034]
[1767679261478,0.0908,93685.0,93665.0,0.09111034]
[1767679261775,0.010677,93680.0,93665.0,0.09111034]
[1767679261968,0.01365927,93685.0,93665.0,0.09111034]
[1767679262162,0.010678,93674.0,93660.0,0.0908]
[1767679262365,0.01365927,93677.0,93660.0,0.0908]
[1767679262578,0.010679,93662.0,93651.0,0.0908]
[1767679262968,0.010679,93662.0,93652.0,0.09111034]
[1767679263277,0.010678,93672.0,93652.0,0.09111034]
[1767679263479,0.010679,93662.0,93652.0,0.09111034]
[1767679265070,0.01365927,93673.0,93652.0,0.09111034]
[1767679265271,0.010679,93665.0,93652.0,0.09111034]
[1767679265579,0.010679,93662.0,93652.0,0.09111034]
[1767679266378,0.010677,93680.0,93655.0,0.09111034]
[1767679266677,0.0908,93683.0,93666.0,0.09111034]
[1767679266877,0.0908,93683.0,93668.0,0.09111034]
[1767679267480,0.0908,93683.0,93669.0,0.00224765]
[1767679267874,0.0908,93683.0,93669.0,0.01292565]
[1767679268076,0.0908,93683.0,93669.0,0.00224765]
[1767679268471,0.0908,93683.0,93670.0,0.010678]
[1767679269077,0.0908,93683.0,93669.0,0.00224765]
[1767679269376,0.010677,93680.0,93665.0,0.00208032]
[1767679269572,0.010677,93676.0,93665.0,0.00208032]
[1767679270479,0.010677,93680.0,93665.0,0.00208032]
[1767679271284,0.101476,93683.0,93667.0,0.00110784]
[1767679271584,0.010676,93686.0,93671.0,0.00122819]
[1767679271883,0.010676,93686.0,93672.0,0.00122819]
[1767679272181,0.010676,93686.0,93674.0,0.00122819]
[1767679272377,0.01281073,93689.0,93674.0,0.00122819]
[1767679272580,0.01281073,93689.0,93676.0,0.00106425]
[1767679272782,0.010676,93687.0,93675.0,0.09111034]
[1767679273381,0.010676,93685.0,93672.0,0.00106425]
[1767679273878,0.010677,93683.0,93672.0,0.00106425]
[1767679274686,0.010676,93686.0,93672.0,0.00106425]
[1767679276087,0.010676,93684.0,93672.0,0.00106425]
[1767679276875,0.010677,93682.0,93672.0,0.00106425]
[1767679277184,0.010676,93684.0,93672.0,0.00106425]
[1767679280081,0.00213473,93689.0,93674.0,0.010677]
[1767679280285,0.00213473,93689.0,93674.0,0.09111034]
[1767679281189,0.010676,93687.0,93674.0,0.09111034]
[1767679281490,0.010676,93685.0,93674.0,0.09111034]
[1767679281681,0.010676,93688.0,93674.0,0.09111034]
[1767679282080,0.010676,93686.0,93674.0,0.09111034]
[1767679282482,0.01281073,93689.0,93674.0,0.09111034]
[1767679283080,0.010676,93687.0,93674.0,0.09111034]
[1767679283780,0.010676,93687.0,93672.0,0.010678]
[1767679285490,0.010676,93685.0,93669.0,0.09111034]
[1767679285687,0.010676,93688.0,93671.0,0.10178834]
[1767679286689,0.00213473,93689.0,93671.0,0.09111034]
[1767679288091,0.01281073,93689.0,93673.0,0.010678]
[1767679288289,0.00213473,93689.0,93674.0,0.10178734]
[1767679288683,0.01281073,93689.0,93674.0,0.10178734]
[1767679289085,0.010675,93692.0,93677.0,0.09111034]
[1767679289286,0.010675,93692.0,93678.0,0.10178734]
[1767679289500,0.010675,93695.0,93680.0,0.10178734]
[1767679291498,0.010675,93698.0,93683.0,0.09224886]
[1767679291992,0.010674,93702.0,93683.0,0.09224886]
[1767679292198,0.010674,93703.0,93687.0,0.09224886]
[1767679294193,0.010674,93703.0,93687.0,0.10292486]
[1767679294398,0.010674,93709.0,93687.0,0.09224886]
[1767679295191,0.010674,93709.0,93691.0,0.09224886]
[1767679296300,0.010674,93709.0,93693.0,0.09224886]
[1767679298898,0.010674,93707.0,93693.0,0.09224886]
[1767679299204,0.010673,93710.0,93693.0,0.09224886]
[1767679299393,0.00213405,93719.0,93701.0,0.09224886]
[1767679300198,0.00213405,93719.0,93701.0,0.10292286]
[1767679300399,0.010673,93716.0,93701.0,0.09224886]
[1767679302006,0.010673,93714.0,93701.0,0.09224886]
[1767679302305,0.09847356,93711.0,93686.0,0.09224886]
[1767679302608,0.010674,93706.0,93687.0,0.18300886]
[1767679302903,0.010674,93706.0,93688.0,0.09224886]
[1767679303099,0.02534318,93712.0,93691.0,0.010676]
[1767679303294,0.010673,93715.0,93697.0,0.09224886]
[1767679303605,0.010674,93708.0,93691.0,0.09224886]
[1767679303991,0.010673,93711.0,93692.0,0.010675]
[1767679304304,0.010674,93709.0,93692.0,0.10292386]
[1767679305004,0.010674,93709.0,93692.0,0.09224886]
[1767679305505,0.010673,93712.0,93693.0,0.10292386]
[1767679306008,0.09913566,93715.0,93693.0,0.10292386]
[1767679306906,0.010673,93711.0,93693.0,0.10292386]
[1767679307708,0.010673,93710.0,93693.0,0.09224886]
[1767679307907,0.010674,93708.0,93693.0,0.09224886]
[1767679310000,0.010673,93712.0,93693.0,0.09224886]
[1767679311010,0.010673,93710.0,93695.0,0.010675]
[1767679311302,0.010673,93710.0,93701.0,0.09224886]
[1767679311504,0.010673,93713.0,93701.0,0.09224886]
[1767679313497,0.00213405,93719.0,93704.0,0.09224886]
[1767679313698,0.00213405,93719.0,93709.0,0.09847356]
[1767679313912,0.00213405,93719.0,93706.0,0.09224886]
[1767679315710,0.010672,93720.0,93708.0,0.09969669]
[1767679316208,0.09076,93726.0,93708.0,0.09969669]
[1767679316612,0.0144663,93729.0,93708.0,0.09969669]
[1767679316817,0.010672,93725.0,93711.0,0.010673]
[1767679317612,0.010671,93728.0,93712.0,0.09969669]
[1767679318113,0.09847356,93730.0,93712.0,0.09969669]
[1767679318315,0.0144663,93732.0,93712.0,0.09969669]
[1767679318610,0.010672,93724.0,93712.0,0.09969669]
[1767679320214,0.010671,93727.0,93712.0,0.09969669]
[1767679320415,0.09847356,93730.0,93712.0,0.09969669]
[1767679320717,0.010672,93722.0,93712.0,0.09969669]
[1767679321813,0.010673,93716.0,93704.0,0.09228865]
[1767679322002,0.09847356,93714.0,93686.0,0.09228865]
[1767679322209,0.09847356,93710.0,93690.0,0.10296465]
[1767679322409,0.09847356,93710.0,93692.0,0.25242164]
[1767679322610,0.010674,93704.0,93693.0,0.09228865]
[1767679323015,0.010674,93704.0,93693.0,0.25328039]
[1767679323207,0.010674,93707.0,93693.0,0.09228865]
[1767679323619,0.10914656,93710.0,93693.0,0.10296365]
[1767679323810,0.01375007,93715.0,93698.0,0.010675]
[1767679324118,0.010673,93714.0,93698.0,0.010675]
[1767679324313,0.010673,93712.0,93695.0,0.010675]
[1767679324918,0.010673,93710.0,93695.0,0.010675]
[1767679325415,0.09847356,93710.0,93695.0,0.010675]
[1767679326117,0.010673,93712.0,93695.0,0.010675]
[1767679328018,0.010673,93710.0,93693.0,0.09228865]
[1767679328521,0.010673,93710.0,93694.0,0.010675]
[1767679331223,0.010673,93711.0,93694.0,0.010675]
[1767679332118,0.01375007,93715.0,93694.0,0.010675]
[1767679332424,0.01375007,93714.0,93694.0,0.010675]
[1767679332624,0.01375007,93714.0,93693.0,0.09228865]
[1767679333016,0.010674,93709.0,93693.0,0.09228865]
[1767679333417,0.010674,93709.0,93694.0,0.010675]
[1767679334533,0.09847356,93710.0,93693.0,0.09228865]
[1767679334725,0.010673,93711.0,93696.0,0.010675]
[1767679337824,0.09847356,93710.0,93696.0,0.010675]
[1767679338124,0.09847356,93710.0,93695.0,0.010675]
[1767679338311,0.010673,93712.0,93695.0,0.010675]
[1767679339226,0.18168524,93715.0,93700.0,0.010674]
[1767679339416,0.010673,93714.0,93693.0,0.09228865]
[1767679339727,0.010673,93714.0,93697.0,0.010675]
[1767679340123,0.18168524,93715.0,93693.0,0.09228865]
[1767679340124,0.010673,93713.0,93696.0,0.010675]
[1767679340432,0.18168524,93715.0,93690.0,0.16068727]
[1767679340433,0.010674,93705.0,93690.0,0.16068727]
[1767679340717,0.010674,93708.0,93690.0,0.25916083]
[1767679340924,0.010674,93708.0,93691.0,0.16064468]
[1767679341620,0.010674,93708.0,93692.0,0.010675]
[1767679341813,0.09847356,93710.0,93694.0,0.010675]
[1767679342014,0.09847356,93710.0,93696.0,0.010675]
[1767679343228,0.010674,93709.0,93692.0,0.010675]
[1767679343624,0.09847356,93710.0,93694.0,0.010675]
[1767679344326,0.09847356,93710.0,93696.0,0.010675]
[1767679345626,0.10914656,93710.0,93696.0,0.010675]
[1767679346023,0.10914656,93710.0,93693.0,0.010675]
[1767679347028,0.010674,93702.0,93691.0,0.09072]
[1767679347226,0.010673,93714.0,93686.0,0.09072]
[1767679347227,0.010675,93694.0,93686.0,0.09072]
[1767679347430,0.010675,93694.0,93686.0,0.15000799]
[1767679348131,0.010675,93697.0,93686.0,0.15000799]
[1767679348435,0.11222363,93700.0,93686.0,0.15000799]
[1767679348930,0.010675,93699.0,93686.0,0.15000799]
[1767679349328,0.010675,93699.0,93686.0,0.09072]
[1767679349632,0.12289863,93700.0,93686.0,0.09072]
[1767679349830,0.10914856,93700.0,93686.0,0.09072]
[1767679352329,0.09871761,93707.0,93686.0,0.09072]
[1767679352632,0.09072,93709.0,93694.0,0.010675]
[1767679352834,0.11227848,93712.0,93690.0,0.19106752]
[1767679353136,0.09072,93711.0,93700.0,0.09847356]
[1767679353325,0.09072,93711.0,93691.0,0.09259396]
[1767679353524,0.101393,93711.0,93695.0,0.010675]
[1767679354836,0.010674,93707.0,93692.0,0.010675]
[1767679357043,0.010674,93709.0,93692.0,0.010675]
[1767679357226,0.21075204,93710.0,93690.0,0.09847356]
[1767679357426,0.22142504,93710.0,93694.0,0.010675]
[1767679359337,0.12295148,93710.0,93694.0,0.010675]
[1767679359536,0.101393,93711.0,93691.0,0.09259396]
[1767679360138,0.010674,93709.0,93691.0,0.09259396]
[1767679360339,0.010673,93712.0,93696.0,0.010675]
[1767679360531,0.01356087,93714.0,93698.0,0.010675]
[1767679360934,0.12295148,93714.0,93698.0,0.010675]
[1767679361638,0.010673,93710.0,93695.0,0.010675]
[1767679362639,0.01356087,93712.0,93692.0,0.09259396]
[1767679362836,0.010674,93709.0,93694.0,0.010675]
[1767679363637,0.01356087,93712.0,93694.0,0.010675]
[1767679364243,0.09871761,93713.0,93692.0,0.09259396]
[1767679365743,0.09871761,93713.0,93702.0,0.010674]
[1767679368142,0.09871761,93713.0,93699.0,0.010675]
[1767679368341,0.11227848,93713.0,93699.0,0.010675]
[1767679369141,0.01356087,93712.0,93696.0,0.010675]
[1767679369344,0.01356087,93711.0,93696.0,0.010675]
[1767679369547,0.01356087,93709.0,93687.0,0.09259396]
[1767679369851,0.01356087,93707.0,93693.0,0.010675]
[1767679370148,0.11227848,93707.0,93693.0,0.010675]
[1767679371146,0.01356087,93703.0,93690.0,0.010676]
[1767679372235,0.01356087,93713.0,93687.0,0.09259396]
[1767679372542,0.010673,93710.0,93687.0,0.09259396]
[1767679372944,0.02423387,93710.0,93694.0,0.010675]
[1767679373144,0.02423387,93710.0,93687.0,0.09259396]
[1767679373145,0.01356087,93710.0,93696.0,0.010675]
[1767679375255,0.01356087,93710.0,93699.0,0.010675]
[1767679375445,0.09871761,93712.0,93700.0,0.010674]
[1767679376848,0.09072,93717.0,93702.0,0.010674]
[1767679377048,0.10351613,93717.0,93702.0,0.010674]
[1767679377352,0.10351613,93717.0,93704.0,0.010674]
[1767679377353,0.01279613,93716.0,93704.0,0.010674]
[1767679377651,0.10549786,93716.0,93704.0,0.010674]
[1767679377851,0.01279613,93715.0,93704.0,0.010674]
[1767679380242,0.01279613,93717.0,93698.0,0.09818489]
[1767679380444,0.00213405,93719.0,93685.0,0.05963267]
[1767679380643,0.010674,93708.0,93686.0,0.09281358]
[1767679380956,0.010673,93718.0,93692.0,0.010675]
[1767679380957,0.010674,93706.0,93692.0,0.010675]
[1767679381152,0.010674,93707.0,93692.0,0.010675]
[1767679381553,0.010674,93707.0,93691.0,0.09072]
[1767679381851,0.010672,93718.0,93691.0,0.09072]
[1767679382054,0.010675,93695.0,93680.0,0.09072]
[1767679382260,0.010676,93691.0,93676.0,0.09072]
[1767679382457,0.010677,93676.0,93665.0,0.0579859]
[1767679382754,0.01202087,93677.0,93663.0,0.101399]
[1767679382958,0.09072,93690.0,93659.0,0.00213542]
[1767679382959,0.01202087,93670.0,93659.0,0.00213542]
[1767679383149,0.01202087,93668.0,93659.0,0.00213542]
[1767679383348,0.01202087,93666.0,93654.0,0.1014]
[1767679383954,0.09293396,93667.0,93657.0,0.010679]
[1767679384255,0.01202087,93669.0,93657.0,0.010679]
[1767679384862,0.01202087,93669.0,93654.0,0.1014]
[1767679386863,0.09293396,93673.0,93658.0,0.010679]
[1767679387070,0.09072,93676.0,93661.0,0.010679]
[1767679387260,0.01202087,93678.0,93661.0,0.010679]
[1767679387463,0.09076,93678.0,93660.0,0.11104264]
[1767679387766,0.09076,93678.0,93661.0,0.01192266]
[1767679388552,0.09293396,93684.0,93662.0,0.01192266]
[1767679388757,0.09076,93684.0,93669.0,0.010678]
[1767679389854,0.09076,93686.0,93666.0,0.01192266]
[1767679390054,0.09076,93686.0,93665.0,0.09911998]
[1767679390055,0.01202087,93687.0,93673.0,0.010678]
[1767679390754,0.01202087,93687.0,93672.0,0.010678]
[1767679391154,0.01202087,93687.0,93669.0,0.010678]
[1767679391557,0.10495483,93687.0,93669.0,0.010678]
[1767679391757,0.01202087,93686.0,93669.0,0.010678]
[1767679396374,0.01202087,93686.0,93672.0,0.010678]
[1767679396963,0.01202087,93686.0,93666.0,0.01192266]
[1767679397162,0.01202087,93686.0,93674.0,0.010677]
[1767679398171,0.09293396,93687.0,93668.0,0.01192266]
[1767679399274,0.10495483,93687.0,93668.0,0.01192266]
[1767679400271,0.10495483,93687.0,93674.0,0.010677]
[1767679400668,0.01202087,93686.0,93674.0,0.010677]
[1767679401374,0.01202087,93686.0,93671.0,0.010678]
[1767679403178,0.09293396,93683.0,93665.0,0.09076]
[1767679403472,0.02269887,93670.0,93652.0,0.09911998]
[1767679403778,0.01202087,93667.0,93651.0,0.05755997]
[1767679404074,0.01202087,93667.0,93650.0,0.01068]
[1767679404075,0.01202087,93667.0,93653.0,0.01068]
[1767679404671,0.01202087,93667.0,93650.0,0.06006782]
[1767679404672,0.09293396,93668.0,93656.0,0.010679]
[1767679404876,0.09293396,93668.0,93659.0,0.010679]
[1767679405078,0.09293396,93674.0,93659.0,0.010679]
[1767679405275,0.01202087,93673.0,93661.0,0.010679]
[1767679405778,0.01202087,93673.0,93652.0,0.01192266]
[1767679405779,0.01202087,93665.0,93652.0,0.09076]
[1767679406077,0.01202087,93669.0,93657.0,0.010679]
[1767679407375,0.01202087,93669.0,93658.0,0.010679]
[1767679408382,0.01202087,93675.0,93660.0,0.010679]
[1767679408682,0.01202087,93674.0,93660.0,0.010679]
[1767679408879,0.01202087,93673.0,93659.0,0.010679]
[1767679409178,0.01202087,93672.0,93659.0,0.010679]
[1767679410181,0.01202087,93672.0,93652.0,0.10268266]
[1767679410381,0.01202087,93672.0,93653.0,0.01192266]
[1767679410582,0.01202087,93670.0,93652.0,0.09076]
[1767679410783,0.01202087,93669.0,93652.0,0.09076]
[1767679411487,0.01202087,93669.0,93658.0,0.010679]
[1767679411684,0.014507,93675.0,93662.0,0.010679]
[1767679412187,0.014507,93674.0,93659.0,0.010679]
[1767679412387,0.014507,93674.0,93654.0,0.01354222]
[1767679412776,0.10991278,93674.0,93656.0,0.01068]
[1767679412974,0.014507,93672.0,93658.0,0.010679]
[1767679413689,0.014507,93671.0,93657.0,0.010679]
[1767679414181,0.014507,93671.0,93652.0,0.09076]
[1767679414388,0.014507,93667.0,93654.0,0.01068]
[1767679414683,0.014507,93667.0,93652.0,0.09076]
[1767679414684,0.10991278,93665.0,93652.0,0.09076]
[1767679414883,0.014507,93664.0,93652.0,0.09076]
[1767679415587,0.014507,93664.0,93653.0,0.01068]
[1767679416283,0.09540578,93665.0,93655.0,0.01068]
[1767679416483,0.014507,93667.0,93657.0,0.010679]
[1767679416778,0.09540578,93670.0,93657.0,0.010679]
[1767679417092,0.10991278,93670.0,93657.0,0.010679]
[1767679419093,0.09076,93678.0,93657.0,0.01354222]
[1767679419094,0.014507,93677.0,93657.0,0.01354222]
[1767679419387,0.105267,93678.0,93662.0,0.010679]
[1767679419586,0.014507,93677.0,93662.0,0.010679]
[1767679421484,0.014507,93675.0,93662.0,0.010679]
[1767679423487,0.09076,93678.0,93666.0,0.010678]
[1767679423887,0.09076,93678.0,93662.0,0.010679]
[1767679424082,0.105267,93678.0,93662.0,0.010679]
[1767679424283,0.014507,93677.0,93662.0,0.010679]
[1767679425587,0.014507,93677.0,93656.0,0.01354222]
[1767679425588,0.014507,93676.0,93664.0,0.010679]
[1767679425992,0.09076,93678.0,93664.0,0.010679]
[1767679426288,0.014507,93677.0,93664.0,0.010679]
[1767679428786,0.014507,93677.0,93660.0,0.09855908]
[1767679428989,0.12058878,93690.0,93672.0,0.010678]
[1767679429192,0.10740173,93689.0,93672.0,0.010678]
[1767679429387,0.014507,93687.0,93669.0,0.010678]
[1767679429694,0.014507,93686.0,93669.0,0.010678]
[1767679430690,0.014507,93685.0,93669.0,0.010678]
[1767679431485,0.09540578,93683.0,93664.0,0.09076]
[1767679431686,0.014507,93678.0,93664.0,0.09076]
[1767679431892,0.09540578,93677.0,93664.0,0.101439]
[1767679433794,0.12374308,93680.0,93664.0,0.101439]
[1767679435290,0.10727892,93676.0,93655.0,0.09717895]
[1767679435500,0.09855908,93670.0,93656.0,0.09076]
[1767679435796,0.09855908,93670.0,93649.0,0.11316521]
[1767679435797,0.01322651,93664.0,93652.0,0.09076]
[1767679436095,0.01322651,93664.0,93652.0,0.10144]
[1767679436395,0.01322651,93667.0,93652.0,0.10144]
[1767679436596,0.01322651,93667.0,93654.0,0.01068]
[1767679436790,0.09855908,93670.0,93656.0,0.010679]
[1767679437095,0.11178559,93670.0,93656.0,0.010679]
[1767679437301,0.09405241,93671.0,93656.0,0.010679]
[1767679437500,0.09855908,93670.0,93656.0,0.010679]
[1767679438093,0.01322651,93674.0,93655.0,0.11316521]
[1767679438298,0.09855908,93670.0,93660.0,0.010679]
[1767679438597,0.09076,93675.0,93660.0,0.010679]
[1767679439092,0.09405241,93677.0,93657.0,0.0134465]
[1767679439288,0.09405241,93677.0,93661.0,0.010679]
[1767679440190,0.10727892,93677.0,93661.0,0.010679]
[1767679440391,0.09855908,93680.0,93664.0,0.010679]
[1767679440585,0.11178559,93680.0,93664.0,0.010679]
[1767679440994,0.01322651,93679.0,93664.0,0.010679]
[1767679444800,0.01322651,93679.0,93666.0,0.010678]
[1767679444993,0.09855908,93680.0,93666.0,0.010678]
[1767679446097,0.010676,93685.0,93668.0,0.010678]
[1767679446400,0.09076,93684.0,93668.0,0.010678]
[1767679446597,0.10414308,93684.0,93668.0,0.010678]
[1767679446897,0.01338308,93683.0,93668.0,0.010678]
[1767679447112,0.01551781,93689.0,93670.0,0.11100886]
[1767679447288,0.00213473,93689.0,93679.0,0.09855908]
[1767679447494,0.101435,93698.0,93679.0,0.10923608]
[1767679447696,0.101435,93698.0,93679.0,0.010677]
[1767679447996,0.01338308,93697.0,93679.0,0.010677]
[1767679448303,0.02405808,93696.0,93678.0,0.010677]
[1767679448603,0.010675,93694.0,93677.0,0.01244978]
[1767679448897,0.02405808,93694.0,93676.0,0.09006886]
[1767679449103,0.02405808,93694.0,93677.0,0.010677]